[Event "Titled Tuesday Blitz December 06 Late 2022"]
[White "Zeman, Matyas"]
[Black "Nasuta, Grzegorz"]
[WhiteFideId "364398"]
[BlackFideId "1141686"]
[WhiteElo "2254"]
[BlackElo "2441"]
[Result "0-1"]
[Round "01"]
[TimeControl "180+1"]
[Date "2022.12.07"]
[WhiteClock "0:00:02"]
[BlackClock "0:00:05"]

1. Nf3 {[%clk 0:02:59]}  d5 {[%clk 0:02:57]} 2. g3 {[%clk 0:03:00]}  Nf6 {[%clk 0:02:57]} 3. Bg2 {[%clk 0:03:00]}  c5 {[%clk 0:02:57]} 4. O-O {[%clk 0:03:00]}  e6 {[%clk 0:02:57]} 5. c4 {[%clk 0:02:58]}  d4 {[%clk 0:02:57]} 6. b4 {[%clk 0:02:51]}  cxb4 {[%clk 0:02:55]} 7. a3 {[%clk 0:02:52]}  Nc6 {[%clk 0:02:55]} 8. d3 {[%clk 0:02:45]}  a5 {[%clk 0:02:55]} 9. axb4 {[%clk 0:02:45]}  Bxb4 {[%clk 0:02:54]} 10. Na3 {[%clk 0:02:42]}  O-O {[%clk 0:02:52]} 11. Nb5 {[%clk 0:02:41]}  e5 {[%clk 0:02:40]} 12. Bg5 {[%clk 0:02:29]}  h6 {[%clk 0:02:40]} 13. Bxf6 {[%clk 0:02:29]}  Qxf6 {[%clk 0:02:41]} 14. Nc7 {[%clk 0:02:29]}  Ra7 {[%clk 0:02:30]} 15. Nd2 {[%clk 0:02:21]}  Qd8 {[%clk 0:02:10]} 16. Nb5 {[%clk 0:02:16]}  Ra6 {[%clk 0:02:08]} 17. f4 {[%clk 0:01:53]}  Re8 {[%clk 0:01:53]} 18. f5 {[%clk 0:01:50]}  Bxd2 {[%clk 0:01:42]} 19. Qxd2 {[%clk 0:01:50]}  Nb4 {[%clk 0:01:43]} 20. f6 {[%clk 0:01:46]}  Rxf6 {[%clk 0:01:42]} 21. Rxf6 {[%clk 0:01:44]}  Qxf6 {[%clk 0:01:43]} 22. Rxa5 {[%clk 0:01:45]}  Nc6 {[%clk 0:01:43]} 23. Ra1 {[%clk 0:01:39]}  Qe7 {[%clk 0:01:38]} 24. Rf1 {[%clk 0:01:27]}  Be6 {[%clk 0:01:22]} 25. e3 {[%clk 0:01:13]}  Qc5 {[%clk 0:01:04]} 26. Re1 {[%clk 0:00:40]}  Rc8 {[%clk 0:00:24]} 27. Bxc6 {[%clk 0:00:39]}  dxe3 {[%clk 0:00:19]} 28. Qxe3 {[%clk 0:00:37]}  Qxe3+ {[%clk 0:00:20]} 29. Rxe3 {[%clk 0:00:38]}  bxc6 {[%clk 0:00:20]} 30. Nd6 {[%clk 0:00:31]}  Rd8 {[%clk 0:00:20]} 31. Nb7 {[%clk 0:00:24]}  Rd4 {[%clk 0:00:20]} 32. Nc5 {[%clk 0:00:21]}  Bf5 {[%clk 0:00:17]} 33. Rxe5 {[%clk 0:00:17]}  Bxd3 {[%clk 0:00:17]} 34. Re8+ {[%clk 0:00:08]}  Kh7 {[%clk 0:00:17]} 35. Rc8 {[%clk 0:00:08]}  Bxc4 {[%clk 0:00:14]} 36. Rxc6 {[%clk 0:00:09]}  Rd1+ {[%clk 0:00:12]} 37. Kf2 {[%clk 0:00:09]}  Rd2+ {[%clk 0:00:12]} 38. Kg1 {[%clk 0:00:07]}  Ra2 {[%clk 0:00:07]} 39. Rd6 {[%clk 0:00:06]}  Bb5 {[%clk 0:00:04]} 40. Ne4 {[%clk 0:00:05]}  f5 {[%clk 0:00:03]} 41. Nf2 {[%clk 0:00:04]}  Bc4 {[%clk 0:00:02]} 42. Rd4 {[%clk 0:00:03]}  Ba6 {[%clk 0:00:01]} 43. g4 {[%clk 0:00:04]}  fxg4 {[%clk 0:00:01]} 44. Nxg4 {[%clk 0:00:03]}  Bb7 {[%clk 0:00:02]} 45. Ne3 {[%clk 0:00:02]}  Ra1+ {[%clk 0:00:02]} 46. Kf2 {[%clk 0:00:02]}  Ra2+ {[%clk 0:00:03]} 47. Kg3 {[%clk 0:00:02]}  Ra3 {[%clk 0:00:04]} 48. Kf4 {[%clk 0:00:02]}  Ra6 {[%clk 0:00:05]} 49. Rd7 {[%clk 0:00:02]}  Rf6+ {[%clk 0:00:06]} 50. Kg3 {[%clk 0:00:02]}  Bc6 {[%clk 0:00:05]} 51. Rc7 {[%clk 0:00:02]}  Ba8 {[%clk 0:00:05]} 52. h4 {[%clk 0:00:03]}  Rf3+ {[%clk 0:00:05]} 53. Kg4 {[%clk 0:00:02]}  Rxe3 {[%clk 0:00:06]} 54. h5 {[%clk 0:00:02]}  Bd5 {[%clk 0:00:05]} 55. Rd7 {[%clk 0:00:02]}  Be6+ {[%clk 0:00:05]} 0-1


[Site "https://www.chess.com"]

[Event "Titled Tuesday Blitz December 06 Late 2022"]
[White "monkins"]
[Black "Ezat, Mohamed"]
[BlackFideId "10600906"]
[WhiteElo "2220"]
[BlackElo "2388"]
[Result "1-0"]
[Round "01"]
[TimeControl "180+1"]
[Date "2022.12.07"]
[WhiteClock "0:00:17"]
[BlackClock "0:00:05"]

1. Nf3 {[%clk 0:03:00]}  Nf6 {[%clk 0:02:57]} 2. c4 {[%clk 0:03:00]}  g6 {[%clk 0:02:56]} 3. g3 {[%clk 0:03:00]}  Bg7 {[%clk 0:02:57]} 4. Nc3 {[%clk 0:03:00]}  O-O {[%clk 0:02:57]} 5. Bg2 {[%clk 0:03:01]}  c5 {[%clk 0:02:54]} 6. d4 {[%clk 0:03:00]}  d6 {[%clk 0:02:53]} 7. O-O {[%clk 0:02:59]}  Nc6 {[%clk 0:02:53]} 8. dxc5 {[%clk 0:02:59]}  dxc5 {[%clk 0:02:53]} 9. Be3 {[%clk 0:02:59]}  Be6 {[%clk 0:02:50]} 10. Qa4 {[%clk 0:02:59]}  Qa5 {[%clk 0:02:36]} 11. Qb5 {[%clk 0:02:59]}  a6 {[%clk 0:01:48]} 12. Qxc5 {[%clk 0:02:44]}  Qxc5 {[%clk 0:01:45]} 13. Bxc5 {[%clk 0:02:45]}  Bxc4 {[%clk 0:01:45]} 14. Rac1 {[%clk 0:02:36]}  Rfe8 {[%clk 0:01:40]} 15. b3 {[%clk 0:02:36]}  Be6 {[%clk 0:01:40]} 16. Rfd1 {[%clk 0:02:19]}  Rad8 {[%clk 0:01:38]} 17. Nd4 {[%clk 0:02:11]}  Nxd4 {[%clk 0:01:34]} 18. Bxd4 {[%clk 0:02:08]}  Bc8 {[%clk 0:01:26]} 19. Na4 {[%clk 0:01:59]}  e5 {[%clk 0:01:09]} 20. Bb6 {[%clk 0:01:43]}  Rxd1+ {[%clk 0:01:08]} 21. Rxd1 {[%clk 0:01:44]}  e4 {[%clk 0:01:06]} 22. Nc5 {[%clk 0:01:36]}  h6 {[%clk 0:01:05]} 23. e3 {[%clk 0:01:25]}  Bg4 {[%clk 0:01:03]} 24. Rd2 {[%clk 0:01:16]}  Kh7 {[%clk 0:00:45]} 25. h3 {[%clk 0:01:15]}  Bf3 {[%clk 0:00:44]} 26. a4 {[%clk 0:01:03]}  Rc8 {[%clk 0:00:22]} 27. a5 {[%clk 0:00:52]}  Rb8 {[%clk 0:00:11]} 28. g4 {[%clk 0:00:42]}  g5 {[%clk 0:00:10]} 29. Nd7 {[%clk 0:00:41]}  Nxd7 {[%clk 0:00:09]} 30. Rxd7 {[%clk 0:00:42]}  Kg6 {[%clk 0:00:08]} 31. Rd6+ {[%clk 0:00:38]}  Kh7 {[%clk 0:00:07]} 32. Rd7 {[%clk 0:00:36]}  Rc8 {[%clk 0:00:07]} 33. Bxf3 {[%clk 0:00:33]}  exf3 {[%clk 0:00:06]} 34. Rxf7 {[%clk 0:00:34]}  Rc1+ {[%clk 0:00:04]} 35. Kh2 {[%clk 0:00:34]}  Kg6 {[%clk 0:00:05]} 36. Rxf3 {[%clk 0:00:32]}  Be5+ {[%clk 0:00:04]} 37. Kg2 {[%clk 0:00:32]}  Rb1 {[%clk 0:00:05]} 38. e4 {[%clk 0:00:30]}  Rb2 {[%clk 0:00:05]} 39. Rd3 {[%clk 0:00:27]}  Re2 {[%clk 0:00:05]} 40. Kf3 {[%clk 0:00:27]}  Rb2 {[%clk 0:00:05]} 41. Bc5 {[%clk 0:00:27]}  Rc2 {[%clk 0:00:03]} 42. b4 {[%clk 0:00:27]}  Rc1 {[%clk 0:00:02]} 43. Rd5 {[%clk 0:00:24]}  Rc3+ {[%clk 0:00:02]} 44. Kg2 {[%clk 0:00:23]}  Bf4 {[%clk 0:00:03]} 45. Rd7 {[%clk 0:00:18]}  Rc4 {[%clk 0:00:03]} 46. Rxb7 {[%clk 0:00:15]}  h5 {[%clk 0:00:03]} 47. Rb6+ {[%clk 0:00:16]}  Kf7 {[%clk 0:00:03]} 48. gxh5 {[%clk 0:00:16]}  Rxe4 {[%clk 0:00:03]} 49. h6 {[%clk 0:00:16]}  Be5 {[%clk 0:00:03]} 50. Rxa6 {[%clk 0:00:15]}  Rh4 {[%clk 0:00:04]} 51. Ra7+ {[%clk 0:00:15]}  Kg6 {[%clk 0:00:03]} 52. h7 {[%clk 0:00:15]}  Bf6 {[%clk 0:00:03]} 53. a6 {[%clk 0:00:15]}  Kf5 {[%clk 0:00:03]} 54. Rf7 {[%clk 0:00:14]}  g4 {[%clk 0:00:04]} 55. Rxf6+ {[%clk 0:00:14]}  Kxf6 {[%clk 0:00:03]} 56. h8=Q+ {[%clk 0:00:14]}  Rxh8 {[%clk 0:00:02]} 57. Bd4+ {[%clk 0:00:14]}  Kg5 {[%clk 0:00:03]} 58. Bxh8 {[%clk 0:00:15]}  Kh4 {[%clk 0:00:04]} 59. hxg4 {[%clk 0:00:15]}  Kxg4 {[%clk 0:00:04]} 60. a7 {[%clk 0:00:15]}  Kh5 {[%clk 0:00:04]} 61. a8=Q {[%clk 0:00:16]}  Kg6 {[%clk 0:00:05]} 62. Qd5 {[%clk 0:00:15]}  Kh7 {[%clk 0:00:06]} 63. Bd4 {[%clk 0:00:15]}  Kg6 {[%clk 0:00:05]} 64. b5 {[%clk 0:00:15]}  Kh6 {[%clk 0:00:04]} 65. b6 {[%clk 0:00:16]}  Kg6 {[%clk 0:00:05]} 66. b7 {[%clk 0:00:16]}  Kh6 {[%clk 0:00:06]} 67. b8=Q {[%clk 0:00:16]}  Kg6 {[%clk 0:00:07]} 68. Qb6+ {[%clk 0:00:16]}  Kh7 {[%clk 0:00:04]} 69. Qd7+ {[%clk 0:00:16]}  Kg8 {[%clk 0:00:05]} 70. Qbd8# {[%clk 0:00:17]} 1-0


[Site "https://www.chess.com"]

[Event "Titled Tuesday Blitz December 06 Late 2022"]
[White "Abasov, Nijat"]
[Black "Xu, Grant"]
[WhiteFideId "13402960"]
[BlackFideId "2052318"]
[WhiteElo "2546"]
[BlackElo "2186"]
[Result "1-0"]
[Round "02"]
[TimeControl "180+1"]
[Date "2022.12.06"]
[WhiteClock "0:00:23"]
[BlackClock "0:00:07"]

1. d4 {[%clk 0:03:00]}  g6 {[%clk 0:02:59]} 2. Nf3 {[%clk 0:03:01]}  Bg7 {[%clk 0:03:00]} 3. e4 {[%clk 0:02:58]}  c6 {[%clk 0:03:00]} 4. c4 {[%clk 0:02:56]}  d6 {[%clk 0:03:00]} 5. Nc3 {[%clk 0:02:56]}  Bg4 {[%clk 0:03:00]} 6. Be3 {[%clk 0:02:56]}  Nd7 {[%clk 0:02:59]} 7. h3 {[%clk 0:02:56]}  Bxf3 {[%clk 0:03:00]} 8. Qxf3 {[%clk 0:02:57]}  Ngf6 {[%clk 0:02:58]} 9. Bd3 {[%clk 0:02:42]}  e5 {[%clk 0:02:56]} 10. d5 {[%clk 0:02:42]}  O-O {[%clk 0:02:53]} 11. O-O {[%clk 0:02:42]}  a6 {[%clk 0:02:51]} 12. dxc6 {[%clk 0:02:37]}  bxc6 {[%clk 0:02:51]} 13. b4 {[%clk 0:02:38]}  Rb8 {[%clk 0:02:46]} 14. Rab1 {[%clk 0:02:37]}  Re8 {[%clk 0:02:39]} 15. Rfd1 {[%clk 0:02:36]}  Qc7 {[%clk 0:02:39]} 16. a4 {[%clk 0:02:29]}  Nf8 {[%clk 0:02:32]} 17. c5 {[%clk 0:02:22]}  dxc5 {[%clk 0:02:23]} 18. Bxc5 {[%clk 0:02:14]}  Ne6 {[%clk 0:02:23]} 19. Bxa6 {[%clk 0:01:59]}  Nxc5 {[%clk 0:02:22]} 20. bxc5 {[%clk 0:02:00]}  Qa7 {[%clk 0:02:20]} 21. Qd3 {[%clk 0:01:57]}  Qxc5 {[%clk 0:02:18]} 22. Qc4 {[%clk 0:01:50]}  Bf8 {[%clk 0:02:00]} 23. Kf1 {[%clk 0:01:34]}  Qxc4+ {[%clk 0:01:48]} 24. Bxc4 {[%clk 0:01:34]}  Bb4 {[%clk 0:01:49]} 25. Na2 {[%clk 0:01:34]}  Ba5 {[%clk 0:01:44]} 26. f3 {[%clk 0:01:34]}  Kf8 {[%clk 0:01:31]} 27. g4 {[%clk 0:01:21]}  Ke7 {[%clk 0:01:26]} 28. Ke2 {[%clk 0:01:21]}  Nd7 {[%clk 0:01:04]} 29. Bd3 {[%clk 0:01:01]}  f6 {[%clk 0:00:59]} 30. Rxb8 {[%clk 0:00:58]}  Rxb8 {[%clk 0:00:59]} 31. Rb1 {[%clk 0:00:59]}  Rxb1 {[%clk 0:00:59]} 32. Bxb1 {[%clk 0:01:00]}  Kd6 {[%clk 0:01:00]} 33. Nc1 {[%clk 0:00:44]}  Nc5 {[%clk 0:01:00]} 34. Bc2 {[%clk 0:00:44]}  Ne6 {[%clk 0:00:56]} 35. Nb3 {[%clk 0:00:44]}  Nf4+ {[%clk 0:00:56]} 36. Kf1 {[%clk 0:00:42]}  Bb6 {[%clk 0:00:55]} 37. a5 {[%clk 0:00:41]}  Ba7 {[%clk 0:00:56]} 38. h4 {[%clk 0:00:41]}  c5 {[%clk 0:00:55]} 39. Nd2 {[%clk 0:00:41]}  Ne6 {[%clk 0:00:41]} 40. Nc4+ {[%clk 0:00:41]}  Kc7 {[%clk 0:00:41]} 41. Ba4 {[%clk 0:00:41]}  Nd4 {[%clk 0:00:40]} 42. Kf2 {[%clk 0:00:41]}  h6 {[%clk 0:00:34]} 43. Ne3 {[%clk 0:00:36]}  Kd6 {[%clk 0:00:23]} 44. Nc4+ {[%clk 0:00:36]}  Kc7 {[%clk 0:00:22]} 45. Ke3 {[%clk 0:00:37]}  g5 {[%clk 0:00:18]} 46. h5 {[%clk 0:00:36]}  Nc6 {[%clk 0:00:12]} 47. Bxc6 {[%clk 0:00:35]}  Kxc6 {[%clk 0:00:12]} 48. Kd3 {[%clk 0:00:35]}  Kb5 {[%clk 0:00:13]} 49. Ne3 {[%clk 0:00:36]}  c4+ {[%clk 0:00:08]} 50. Nxc4 {[%clk 0:00:36]}  Bc5 {[%clk 0:00:08]} 51. Kc3 {[%clk 0:00:31]}  Bb4+ {[%clk 0:00:08]} 52. Kb3 {[%clk 0:00:31]}  Bc5 {[%clk 0:00:09]} 53. Nb2 {[%clk 0:00:27]}  Bd4 {[%clk 0:00:05]} 54. Nc4 {[%clk 0:00:18]}  Bc5 {[%clk 0:00:02]} 55. Nd2 {[%clk 0:00:18]}  Bd4 {[%clk 0:00:01]} 56. Nf1 {[%clk 0:00:17]}  Bc5 {[%clk 0:00:01]} 57. Ng3 {[%clk 0:00:18]}  Bf8 {[%clk 0:00:02]} 58. Nf5 {[%clk 0:00:18]}  Kxa5 {[%clk 0:00:02]} 59. Kc4 {[%clk 0:00:18]}  Ka4 {[%clk 0:00:03]} 60. Kd5 {[%clk 0:00:19]}  Kb3 {[%clk 0:00:04]} 61. Ke6 {[%clk 0:00:20]}  Kc4 {[%clk 0:00:04]} 62. Kxf6 {[%clk 0:00:20]}  Kd3 {[%clk 0:00:04]} 63. Kf7 {[%clk 0:00:21]}  Bc5 {[%clk 0:00:04]} 64. Nxh6 {[%clk 0:00:21]}  Ke3 {[%clk 0:00:05]} 65. Nf5+ {[%clk 0:00:21]}  Kxf3 {[%clk 0:00:05]} 66. h6 {[%clk 0:00:22]}  Kxg4 {[%clk 0:00:05]} 67. h7 {[%clk 0:00:23]}  Kf4 {[%clk 0:00:06]} 68. h8=Q {[%clk 0:00:23]}  Kxe4 {[%clk 0:00:07]} 69. Ke6 {[%clk 0:00:23]}  g4 {[%clk 0:00:07]} 70. Qxe5+ {[%clk 0:00:23]} 1-0


[Site "https://www.chess.com"]

[Event "Titled Tuesday Blitz December 06 Late 2022"]
[White "Aggelis, Nikolaos"]
[Black "Fernandez Siles, Luis"]
[WhiteFideId "4213220"]
[BlackFideId "2209420"]
[WhiteElo "2189"]
[BlackElo "2186"]
[Result "0-1"]
[Round "02"]
[TimeControl "180+1"]
[Date "2022.12.07"]
[WhiteClock "0:00:12"]
[BlackClock "0:00:13"]

1. Nf3 {[%clk 0:02:55]}  Nf6 {[%clk 0:02:59]} 2. c4 {[%clk 0:02:51]}  g6 {[%clk 0:02:59]} 3. Nc3 {[%clk 0:02:50]}  Bg7 {[%clk 0:03:00]} 4. d3 {[%clk 0:02:44]}  O-O {[%clk 0:02:59]} 5. g3 {[%clk 0:02:44]}  d6 {[%clk 0:02:57]} 6. Bg2 {[%clk 0:02:45]}  Nc6 {[%clk 0:02:57]} 7. O-O {[%clk 0:02:45]}  Nh5 {[%clk 0:02:57]} 8. Rb1 {[%clk 0:02:44]}  f5 {[%clk 0:02:55]} 9. Nd5 {[%clk 0:02:42]}  e6 {[%clk 0:02:50]} 10. Nf4 {[%clk 0:02:40]}  Nf6 {[%clk 0:02:48]} 11. b4 {[%clk 0:02:40]}  Ne5 {[%clk 0:02:38]} 12. Bb2 {[%clk 0:02:18]}  Nf7 {[%clk 0:02:24]} 13. Qb3 {[%clk 0:02:10]}  g5 {[%clk 0:02:17]} 14. Bxf6 {[%clk 0:02:02]}  Bxf6 {[%clk 0:02:09]} 15. Nh5 {[%clk 0:02:02]}  Bh8 {[%clk 0:02:00]} 16. e3 {[%clk 0:01:50]}  e5 {[%clk 0:01:51]} 17. c5 {[%clk 0:01:37]}  g4 {[%clk 0:01:49]} 18. Nh4 {[%clk 0:01:31]}  Qg5 {[%clk 0:01:43]} 19. cxd6 {[%clk 0:01:22]}  cxd6 {[%clk 0:01:40]} 20. Nf4 {[%clk 0:01:07]}  exf4 {[%clk 0:01:38]} 21. exf4 {[%clk 0:01:08]}  Qd8 {[%clk 0:01:19]} 22. Bd5 {[%clk 0:01:09]}  Bd4 {[%clk 0:01:14]} 23. Ng2 {[%clk 0:01:04]}  Qf6 {[%clk 0:01:11]} 24. Ne3 {[%clk 0:01:02]}  Rb8 {[%clk 0:01:05]} 25. Rbc1 {[%clk 0:00:53]}  Bd7 {[%clk 0:00:30]} 26. Rc7 {[%clk 0:00:48]}  Bc6 {[%clk 0:00:30]} 27. Bxf7+ {[%clk 0:00:38]}  Rxf7 {[%clk 0:00:28]} 28. Rxf7 {[%clk 0:00:39]}  Qxf7 {[%clk 0:00:26]} 29. Qxf7+ {[%clk 0:00:40]}  Kxf7 {[%clk 0:00:26]} 30. Nxf5 {[%clk 0:00:41]}  Bc3 {[%clk 0:00:20]} 31. Nh6+ {[%clk 0:00:34]}  Kg6 {[%clk 0:00:19]} 32. Nxg4 {[%clk 0:00:34]}  Bxb4 {[%clk 0:00:18]} 33. Rc1 {[%clk 0:00:32]}  Re8 {[%clk 0:00:18]} 34. Ne3 {[%clk 0:00:28]}  Bc5 {[%clk 0:00:17]} 35. Nd1 {[%clk 0:00:21]}  Re2 {[%clk 0:00:17]} 36. Kf1 {[%clk 0:00:20]}  Rxa2 {[%clk 0:00:16]} 37. Ne3 {[%clk 0:00:14]}  Bxe3 {[%clk 0:00:15]} 38. fxe3 {[%clk 0:00:15]}  Rxh2 {[%clk 0:00:15]} 39. Rc4 {[%clk 0:00:14]}  a5 {[%clk 0:00:14]} 40. Rd4 {[%clk 0:00:14]}  a4 {[%clk 0:00:13]} 41. Rxd6+ {[%clk 0:00:14]}  Kf5 {[%clk 0:00:12]} 42. Rd8 {[%clk 0:00:15]}  Kg4 {[%clk 0:00:13]} 43. e4 {[%clk 0:00:13]}  Kf3 {[%clk 0:00:13]} 44. Ke1 {[%clk 0:00:13]}  a3 {[%clk 0:00:13]} 45. Ra8 {[%clk 0:00:12]}  a2 {[%clk 0:00:13]} 46. f5 {[%clk 0:00:11]}  Ke3 {[%clk 0:00:13]} 47. Kd1 {[%clk 0:00:11]}  Kxd3 {[%clk 0:00:13]} 48. Kc1 {[%clk 0:00:11]}  Kc3 {[%clk 0:00:13]} 49. Kd1 {[%clk 0:00:11]}  Rh1+ {[%clk 0:00:13]} 50. Ke2 {[%clk 0:00:11]}  a1=Q {[%clk 0:00:13]} 51. Rxa1 {[%clk 0:00:11]}  Rxa1 {[%clk 0:00:14]} 52. e5 {[%clk 0:00:12]}  Kd4 {[%clk 0:00:13]} 53. e6 {[%clk 0:00:13]}  Ke5 {[%clk 0:00:14]} 54. e7 {[%clk 0:00:12]}  Kxf5 {[%clk 0:00:13]} 0-1


[Site "https://www.chess.com"]

[Event "Titled Tuesday Blitz December 06 Late 2022"]
[White "Aldokhin, Ivan"]
[Black "Bas Mas, Jose Joaquin"]
[WhiteFideId "24115720"]
[BlackFideId "22219064"]
[WhiteElo "2313"]
[BlackElo "2233"]
[Result "1/2-1/2"]
[Round "02"]
[TimeControl "180+1"]
[Date "2022.12.07"]
[WhiteClock "0:00:07"]
[BlackClock "0:00:02"]

1. e4 {[%clk 0:03:00]}  c5 {[%clk 0:02:59]} 2. Nf3 {[%clk 0:03:01]}  d6 {[%clk 0:02:58]} 3. d4 {[%clk 0:03:02]}  cxd4 {[%clk 0:02:58]} 4. Nxd4 {[%clk 0:03:02]}  Nf6 {[%clk 0:02:59]} 5. Nc3 {[%clk 0:03:03]}  Nc6 {[%clk 0:02:57]} 6. Bc4 {[%clk 0:03:04]}  Na5 {[%clk 0:02:48]} 7. Be2 {[%clk 0:02:55]}  g6 {[%clk 0:02:44]} 8. O-O {[%clk 0:02:27]}  Bg7 {[%clk 0:02:40]} 9. f4 {[%clk 0:02:27]}  Nc6 {[%clk 0:02:37]} 10. Be3 {[%clk 0:02:23]}  O-O {[%clk 0:02:34]} 11. Bf3 {[%clk 0:02:23]}  Nd7 {[%clk 0:02:18]} 12. Qd2 {[%clk 0:01:53]}  Rb8 {[%clk 0:02:10]} 13. Rad1 {[%clk 0:01:44]}  Nxd4 {[%clk 0:02:06]} 14. Bxd4 {[%clk 0:01:44]}  Bxd4+ {[%clk 0:02:06]} 15. Qxd4 {[%clk 0:01:44]}  Qb6 {[%clk 0:02:07]} 16. Nd5 {[%clk 0:01:32]}  Qxd4+ {[%clk 0:02:01]} 17. Rxd4 {[%clk 0:01:32]}  Re8 {[%clk 0:02:01]} 18. Re1 {[%clk 0:01:24]}  b5 {[%clk 0:01:50]} 19. e5 {[%clk 0:01:14]}  dxe5 {[%clk 0:01:49]} 20. fxe5 {[%clk 0:01:14]}  Nc5 {[%clk 0:01:49]} 21. Nb4 {[%clk 0:00:41]}  Bb7 {[%clk 0:01:41]} 22. Bxb7 {[%clk 0:00:32]}  Rxb7 {[%clk 0:01:42]} 23. Red1 {[%clk 0:00:29]}  a5 {[%clk 0:01:39]} 24. Nc6 {[%clk 0:00:29]}  a4 {[%clk 0:01:29]} 25. Rd5 {[%clk 0:00:22]}  Ne6 {[%clk 0:01:10]} 26. Rd7 {[%clk 0:00:22]}  Rxd7 {[%clk 0:01:10]} 27. Rxd7 {[%clk 0:00:23]}  Kf8 {[%clk 0:01:09]} 28. Rb7 {[%clk 0:00:23]}  Rc8 {[%clk 0:01:07]} 29. Nb4 {[%clk 0:00:21]}  Nd4 {[%clk 0:01:05]} 30. c3 {[%clk 0:00:19]}  Ne2+ {[%clk 0:00:58]} 31. Kf2 {[%clk 0:00:19]}  Nf4 {[%clk 0:00:56]} 32. Rxb5 {[%clk 0:00:19]}  Kg7 {[%clk 0:00:54]} 33. Rb7 {[%clk 0:00:17]}  a3 {[%clk 0:00:53]} 34. bxa3 {[%clk 0:00:09]}  Rxc3 {[%clk 0:00:53]} 35. Rxe7 {[%clk 0:00:06]}  Rxa3 {[%clk 0:00:52]} 36. g3 {[%clk 0:00:05]}  Ne6 {[%clk 0:00:46]} 37. Rb7 {[%clk 0:00:03]}  Ra4 {[%clk 0:00:43]} 38. Ke2 {[%clk 0:00:02]}  Nd4+ {[%clk 0:00:41]} 39. Kd3 {[%clk 0:00:01]}  Nf3 {[%clk 0:00:41]} 40. Ke4 {[%clk 0:00:01]}  Nxh2 {[%clk 0:00:40]} 41. Kd5 {[%clk 0:00:01]}  Ra5+ {[%clk 0:00:36]} 42. Kd6 {[%clk 0:00:02]}  Kf8 {[%clk 0:00:31]} 43. Nd5 {[%clk 0:00:01]}  Ra6+ {[%clk 0:00:29]} 44. Kd7 {[%clk 0:00:02]}  Re6 {[%clk 0:00:28]} 45. Rb8+ {[%clk 0:00:01]}  Kg7 {[%clk 0:00:28]} 46. Re8 {[%clk 0:00:02]}  Rxe8 {[%clk 0:00:23]} 47. Kxe8 {[%clk 0:00:03]}  Nf3 {[%clk 0:00:22]} 48. a4 {[%clk 0:00:03]}  Nxe5 {[%clk 0:00:22]} 49. a5 {[%clk 0:00:04]}  Nc6 {[%clk 0:00:20]} 50. a6 {[%clk 0:00:04]}  Na7 {[%clk 0:00:18]} 51. Kd7 {[%clk 0:00:04]}  f5 {[%clk 0:00:19]} 52. Kc7 {[%clk 0:00:04]}  g5 {[%clk 0:00:18]} 53. Kb7 {[%clk 0:00:04]}  Nb5 {[%clk 0:00:18]} 54. Nc7 {[%clk 0:00:04]}  Nd6+ {[%clk 0:00:18]} 55. Kc6 {[%clk 0:00:04]}  Nc8 {[%clk 0:00:18]} 56. Ne6+ {[%clk 0:00:04]}  Kf6 {[%clk 0:00:17]} 57. Nc5 {[%clk 0:00:02]}  f4 {[%clk 0:00:17]} 58. gxf4 {[%clk 0:00:01]}  gxf4 {[%clk 0:00:17]} 59. Ne4+ {[%clk 0:00:02]}  Ke5 {[%clk 0:00:17]} 60. Nc5 {[%clk 0:00:02]}  f3 {[%clk 0:00:17]} 61. Kc7 {[%clk 0:00:02]}  Na7 {[%clk 0:00:17]} 62. Kb6 {[%clk 0:00:02]}  Nc8+ {[%clk 0:00:17]} 63. Kc7 {[%clk 0:00:02]}  Na7 {[%clk 0:00:09]} 64. Kb7 {[%clk 0:00:02]}  Kd5 {[%clk 0:00:08]} 65. Nd3 {[%clk 0:00:01]}  Nb5 {[%clk 0:00:07]} 66. Nf4+ {[%clk 0:00:02]}  Ke4 {[%clk 0:00:07]} 67. Nh3 {[%clk 0:00:02]}  h5 {[%clk 0:00:06]} 68. Kb6 {[%clk 0:00:02]}  Nd6 {[%clk 0:00:06]} 69. Kc6 {[%clk 0:00:02]}  Nc8 {[%clk 0:00:05]} 70. Kb7 {[%clk 0:00:02]}  Nd6+ {[%clk 0:00:05]} 71. Kc6 {[%clk 0:00:02]}  Ke5 {[%clk 0:00:05]} 72. Ng1 {[%clk 0:00:02]}  Nc8 {[%clk 0:00:03]} 73. Nxf3+ {[%clk 0:00:02]}  Kf4 {[%clk 0:00:03]} 74. Nh4 {[%clk 0:00:02]}  Kg4 {[%clk 0:00:03]} 75. Ng6 {[%clk 0:00:02]}  h4 {[%clk 0:00:04]} 76. Nxh4 {[%clk 0:00:01]}  Kxh4 {[%clk 0:00:05]} 77. Kc7 {[%clk 0:00:02]}  Na7 {[%clk 0:00:04]} 78. Kb6 {[%clk 0:00:02]}  Nc8+ {[%clk 0:00:05]} 79. Kb7 {[%clk 0:00:03]}  Nd6+ {[%clk 0:00:05]} 80. Kb8 {[%clk 0:00:03]}  Nb5 {[%clk 0:00:04]} 81. Kb7 {[%clk 0:00:03]}  Kg5 {[%clk 0:00:04]} 82. Kc6 {[%clk 0:00:03]}  Na7+ {[%clk 0:00:04]} 83. Kc7 {[%clk 0:00:04]}  Kf5 {[%clk 0:00:02]} 84. Kb6 {[%clk 0:00:03]}  Nc8+ {[%clk 0:00:02]} 85. Kb7 {[%clk 0:00:04]}  Nd6+ {[%clk 0:00:02]} 86. Kc6 {[%clk 0:00:04]}  Nc8 {[%clk 0:00:02]} 87. Kd7 {[%clk 0:00:05]}  Na7 {[%clk 0:00:02]} 88. Kc7 {[%clk 0:00:06]}  Ke6 {[%clk 0:00:02]} 89. Kb7 {[%clk 0:00:07]}  Nb5 {[%clk 0:00:02]} 90. a7 {[%clk 0:00:07]}  Nxa7 {[%clk 0:00:02]} 1/2-1/2


[Site "https://www.chess.com"]

[Event "Titled Tuesday Blitz December 06 Late 2022"]
[White "Andreikin, Dmitry"]
[Black "McCoy, Owen"]
[WhiteFideId "4158814"]
[BlackFideId "30924502"]
[WhiteElo "2735"]
[BlackElo "2661"]
[Result "1-0"]
[Round "02"]
[TimeControl "180+1"]
[Date "2022.12.06"]
[WhiteClock "0:00:37"]
[BlackClock "0:00:04"]

1. d4 {[%clk 0:02:59]}  Nf6 {[%clk 0:02:59]} 2. c4 {[%clk 0:02:59]}  e6 {[%clk 0:02:56]} 3. Nf3 {[%clk 0:02:57]}  Bb4+ {[%clk 0:02:57]} 4. Nbd2 {[%clk 0:02:57]}  O-O {[%clk 0:02:56]} 5. a3 {[%clk 0:02:56]}  Be7 {[%clk 0:02:55]} 6. e4 {[%clk 0:02:56]}  d6 {[%clk 0:02:56]} 7. Bd3 {[%clk 0:02:54]}  e5 {[%clk 0:02:54]} 8. O-O {[%clk 0:02:54]}  Nfd7 {[%clk 0:02:51]} 9. Re1 {[%clk 0:02:52]}  exd4 {[%clk 0:02:42]} 10. Nxd4 {[%clk 0:02:52]}  Bf6 {[%clk 0:02:43]} 11. N2f3 {[%clk 0:02:49]}  Re8 {[%clk 0:02:40]} 12. Rb1 {[%clk 0:02:39]}  a5 {[%clk 0:02:09]} 13. b3 {[%clk 0:02:33]}  Na6 {[%clk 0:01:29]} 14. Bc2 {[%clk 0:02:21]}  Nb6 {[%clk 0:01:24]} 15. Qd3 {[%clk 0:02:01]}  Nc5 {[%clk 0:01:09]} 16. Qf1 {[%clk 0:02:01]}  Be6 {[%clk 0:00:45]} 17. Be3 {[%clk 0:01:52]}  Bd7 {[%clk 0:00:38]} 18. Bf4 {[%clk 0:01:48]}  g5 {[%clk 0:00:33]} 19. Bg3 {[%clk 0:01:39]}  g4 {[%clk 0:00:33]} 20. e5 {[%clk 0:01:39]}  Bg7 {[%clk 0:00:19]} 21. Nh4 {[%clk 0:01:19]}  dxe5 {[%clk 0:00:17]} 22. Ndf5 {[%clk 0:01:19]}  Qg5 {[%clk 0:00:15]} 23. Nxg7 {[%clk 0:01:00]}  Qxg7 {[%clk 0:00:14]} 24. b4 {[%clk 0:01:00]}  axb4 {[%clk 0:00:14]} 25. axb4 {[%clk 0:01:00]}  Nca4 {[%clk 0:00:08]} 26. Rbd1 {[%clk 0:00:54]}  Rad8 {[%clk 0:00:06]} 27. c5 {[%clk 0:00:52]}  Nc8 {[%clk 0:00:04]} 28. Rxd7 {[%clk 0:00:46]}  Rxd7 {[%clk 0:00:04]} 29. Bxa4 {[%clk 0:00:47]}  c6 {[%clk 0:00:05]} 30. Bc2 {[%clk 0:00:45]}  Qg5 {[%clk 0:00:04]} 31. f4 {[%clk 0:00:37]} 1-0


[Site "https://www.chess.com"]